bitfinex/quotes_ETHUSD_20250505
["timestamp","ask_amount","ask_price","bid_price","bid_amount"]
[1746454789290,5.52289078,1810.7,1810.4,0.54229852]
[1746454789607,5.52226485,1810.9,1810.6,0.7851]
[1746454789808,5.52038489,1811.5,1810.6,0.7851]
[1746454789809,5.52193896,1811.0,1810.7,0.05522138]
[1746454790008,5.52215492,1810.9,1810.7,0.69154291]
[1746454790217,5.52216794,1810.9,1810.7,0.69154291]
[1746454790513,11.04404761,1811.0,1810.7,0.69154291]
[1746454790915,5.52215177,1810.9,1810.7,0.63632153]
[1746454791212,5.52215177,1810.9,1810.6,0.7851]
[1746454791809,5.52215177,1810.9,1810.6,6.30808946]
[1746454792118,5.52242102,1810.8,1810.6,0.7851]
[1746454792281,5.52215177,1810.9,1810.6,0.7851]
[1746454793116,5.52242219,1810.8,1810.6,0.7851]
[1746454793284,5.52242219,1810.8,1810.5,3.68486623]
[1746454793285,5.52272601,1810.7,1810.5,3.68486623]
[1746454793798,5.52303103,1810.6,1810.5,3.68486623]
[1746454794571,5.59206814,1810.6,1810.5,3.68486623]
[1746454794914,5.52333609,1810.5,1810.4,9.28116475]
[1746454795975,5.52333609,1810.5,1810.4,8.73886623]
[1746454796730,5.52303103,1810.6,1810.4,8.73886623]
[1746454796886,5.52303103,1810.6,1810.4,8.79409676]
[1746454797517,5.52280476,1810.7,1810.4,5.10923053]
[1746454797713,11.04583475,1810.7,1810.4,5.10923053]
[1746454797887,5.52280476,1810.7,1810.5,0.51092305]
[1746454798088,11.04581274,1810.7,1810.5,0.51092305]
[1746454798287,5.52280476,1810.7,1810.5,0.51092305]
[1746454798715,5.52303103,1810.6,1810.5,0.51092305]
[1746454798926,5.59164708,1810.8,1810.5,0.51092305]
[1746454799187,5.52260895,1810.8,1810.5,1.30032305]
[1746454799387,0.63713367,1810.9,1810.5,1.30032305]
[1746454799913,5.52298675,1810.7,1810.5,1.30032305]
[1746454800102,11.04595475,1810.7,1810.5,1.30032305]
[1746454800323,5.522968,1810.7,1810.5,1.30032305]
[1746454800521,0.06903398,1810.9,1810.5,6.87862081]
[1746454800750,6.08985495,1811.1,1810.6,6.21071999]
[1746454800931,5.52174028,1811.1,1810.7,5.57782449]
[1746454801115,5.52174028,1811.1,1810.8,0.7576]
[1746454801116,11.04351512,1811.1,1810.8,0.7576]
[1746454801441,5.52103497,1811.3,1811.0,5.52175958]
[1746454801600,5.5207702,1811.4,1811.1,0.7697]
[1746454801999,5.52092928,1811.3,1811.1,0.7697]
[1746454802425,5.52046866,1811.5,1811.1,0.7697]
[1746454802633,5.52061874,1811.4,1811.1,6.34625742]
[1746454802844,5.52061874,1811.4,1811.2,0.63462574]
[1746454803156,5.52061874,1811.4,1811.1,0.7697]
[1746454803314,11.04147234,1811.4,1811.1,0.82490601]
[1746454803516,5.52090577,1811.3,1811.1,0.82490601]
[1746454803711,5.52080422,1811.4,1811.1,0.82490601]
[1746454804752,5.52093008,1811.3,1811.1,0.82490601]
[1746454805051,5.52080422,1811.4,1811.1,0.82490601]
[1746454805262,5.52028705,1811.5,1811.1,6.34630373]
[1746454805439,5.52028705,1811.5,1811.2,0.63463037]
[1746454805644,5.52061429,1811.4,1811.2,0.63463037]
[1746454806043,0.63710764,1811.6,1811.1,0.7697]
[1746454806244,5.52120141,1811.2,1811.0,3.0]
[1746454806761,5.52110337,1811.3,1811.0,3.0]
[1746454806962,5.52110337,1811.3,1811.0,8.5770091]
[1746454807184,6.08811505,1811.6,1811.1,0.85770091]
[1746454807185,5.52055658,1811.5,1811.1,0.85770091]
[1746454807336,5.52073802,1811.4,1811.2,0.84050616]
[1746454807537,5.52073802,1811.4,1811.2,0.7853]
[1746454808363,11.04156916,1811.4,1811.2,0.7853]
[1746454808679,5.52073802,1811.4,1811.2,0.7853]
[1746454811168,5.52013516,1811.6,1811.2,0.7853]
[1746454811361,11.04038835,1811.6,1811.3,0.0552025]
[1746454811566,5.52035758,1811.5,1811.3,0.69135375]
[1746454811782,5.52035758,1811.5,1811.3,0.63615125]
[1746454812087,11.03905147,1811.8,1811.4,6.27974391]
[1746454812294,0.5681,1812.1,1811.5,5.57535043]
[1746454812295,5.51922257,1811.9,1811.5,5.57535043]
[1746454812481,5.51889277,1812.0,1811.6,5.5199286]
[1746454812679,5.51889277,1812.0,1811.7,0.7824]
[1746454812899,0.5681,1812.3,1811.8,0.05519053]
[1746454813206,5.51869677,1812.1,1811.7,9.30192066]
[1746454813508,5.51869677,1812.1,1811.8,0.98537597]
[1746454813712,5.51876659,1812.0,1811.8,0.93019207]
[1746454814027,5.51906838,1811.9,1811.7,3.7824]
[1746454814211,5.51892794,1812.0,1811.7,4.20730342]
[1746454814683,5.51892794,1812.0,1811.7,3.7824]
[1746454814887,5.51862964,1812.1,1811.8,0.05518694]
[1746454815195,5.51891573,1812.0,1811.8,0.05518694]
[1746454815409,5.51891573,1812.0,1811.8,0.43894563]
[1746454815583,5.51906838,1811.9,1811.8,0.38375869]
[1746454815983,5.51937299,1811.8,1811.7,0.7824]
[1746454816182,5.51906838,1811.9,1811.7,0.7824]
[1746454816599,5.51906838,1811.9,1811.7,0.83759002]
[1746454816795,5.51906838,1811.9,1811.7,0.7824]
[1746454817228,5.51937299,1811.8,1811.7,0.7824]
[1746454817384,5.51937299,1811.8,1811.7,0.58224]
[1746454818314,5.51906838,1811.9,1811.7,0.58224]
[1746454818521,5.51937299,1811.8,1811.7,0.58224]
[1746454819535,5.51906838,1811.9,1811.7,0.58224]
[1746454821399,5.51917508,1811.9,1811.7,0.58224]
[1746454821601,5.51928736,1811.9,1811.7,0.58224]
[1746454821814,5.51937299,1811.8,1811.7,0.58224]
[1746454822014,5.51928736,1811.9,1811.7,0.58224]
[1746454822416,5.51928736,1811.9,1811.7,0.63743088]
[1746454822834,5.51892835,1812.0,1811.7,0.63743088]
[1746454823030,11.03795027,1812.0,1811.7,0.63743088]
[1746454823234,5.51892835,1812.0,1811.7,0.63743088]
[1746454823749,5.51908015,1811.9,1811.7,0.63743088]
[1746454824345,5.51893715,1812.0,1811.7,0.63743088]
[1746454824640,11.03729681,1812.1,1811.8,0.806]
[1746454824946,6.08643657,1812.2,1811.8,7.02147563]
[1746454825143,5.51847791,1812.1,1811.9,0.05519081]
[1746454825793,5.51906838,1811.9,1811.8,0.69629074]
[1746454826092,5.51906838,1811.9,1811.6,5.04]
[1746454826255,5.51895169,1812.0,1811.7,1.36519093]
[1746454827247,5.51895169,1812.0,1811.7,1.31]
[1746454827454,11.03847958,1811.9,1811.7,1.36519095]
[1746454827656,5.51937299,1811.8,1811.6,5.04]
[1746454827875,5.5205918,1811.4,1811.3,18.261]
[1746454828158,5.5205918,1811.4,1811.2,5.868]
[1746454828468,5.52050431,1811.5,1811.3,0.5868]
[1746454828678,5.52089659,1811.3,1811.2,5.038]
[1746454828844,5.5207096,1811.4,1811.2,5.038]
[1746454829679,5.52042002,1811.5,1811.2,5.038]
[1746454829680,5.52042753,1811.5,1811.2,5.038]
[1746454830387,11.0409516,1811.5,1811.2,5.038]
[1746454830680,5.52042753,1811.5,1811.2,6.46241748]
[1746454831179,11.04098218,1811.5,1811.2,6.46241748]
[1746454831480,5.52042753,1811.5,1811.2,6.46241748]
[1746454831979,0.6371083,1811.6,1811.2,5.038]
[1746454831980,5.52089659,1811.3,1811.2,5.038]
[1746454832369,5.52190296,1811.0,1810.8,0.7748]
[1746454833175,5.52242102,1810.8,1810.7,3.74008482]
[1746454833497,5.52242102,1810.8,1810.7,3.68486623]
[1746454833693,5.59145269,1810.8,1810.7,3.68486623]
[1746454833905,5.52242102,1810.8,1810.7,3.68486623]
[1746454834252,5.59145236,1810.8,1810.7,3.68486623]
[1746454834465,7.2528222,1810.8,1810.7,3.68486623]
[1746454834784,7.8209222,1810.8,1810.7,3.68486623]
[1746454835148,6.09052102,1810.8,1810.7,3.82286651]
[1746454835405,11.04459916,1810.9,1810.7,0.13800028]
[1746454835684,5.52224607,1810.9,1810.5,6.35440799]
[1746454835891,5.52224607,1810.9,1810.8,0.13790674]
[1746454836208,5.52201708,1811.0,1810.8,0.13790674]
[1746454836352,5.52211607,1810.9,1810.5,5.801]
[1746454836556,5.52257015,1810.8,1810.5,6.3811]
[1746454836757,5.52198761,1811.0,1810.6,0.13820829]
[1746454836963,11.61153945,1811.1,1810.7,5.57784616]
[1746454837173,5.52136379,1811.2,1810.9,0.7691]
[1746454837373,11.04280663,1811.2,1811.0,0.13825566]
[1746454837698,5.52150626,1811.1,1811.0,0.13825566]
[1746454838095,5.59052504,1811.1,1811.0,0.13825566]
[1746454838298,5.52213017,1810.9,1810.7,0.8078]
[1746454839192,5.52187014,1811.0,1810.7,6.38562711]
[1746454839368,5.52187014,1811.0,1810.8,0.63856271]
[1746454839572,5.52187014,1811.0,1810.7,0.8078]
[1746454839870,5.52180321,1811.1,1810.8,0.05521812]
[1746454840080,5.52184104,1811.0,1810.8,0.05521812]
[1746454840432,5.52180321,1811.1,1810.8,0.05521812]
[1746454840601,5.5218415,1811.0,1810.8,0.05521812]
[1746454840766,5.5218415,1811.0,1810.8,0.69378282]
[1746454841192,5.5218415,1811.0,1810.8,0.05521812]
[1746454841579,5.52191879,1811.0,1810.8,0.05521812]
[1746454841789,5.52152273,1811.1,1810.8,0.05521812]
[1746454841991,0.5681,1811.3,1810.8,0.05521812]
[1746454842302,5.52174129,1811.1,1810.7,6.74990048]
[1746454842501,5.52174129,1811.1,1810.8,0.67499005]
[1746454842999,5.52225085,1810.9,1810.7,1.22731855]
[1746454843903,5.51800481,1812.3,1811.9,6.27156162]
[1746454844065,5.51865038,1812.1,1811.9,0.7525]
[1746454844287,5.51828467,1812.2,1811.9,0.80768338]
[1746454844479,5.51828467,1812.2,1811.9,0.7525]
[1746454844480,5.51866285,1812.1,1811.9,0.7525]
[1746454845095,11.03739465,1812.1,1811.9,0.7525]
[1746454845296,5.51906838,1811.9,1811.8,5.026]
[1746454846192,5.51906838,1811.9,1811.5,9.8204614]
[1746454846400,5.51906838,1811.9,1811.5,11.85715231]
[1746454846610,5.51906838,1811.9,1811.5,11.80196064]
[1746454846611,5.51910652,1811.9,1811.5,11.80196064]
[1746454846926,5.58819549,1811.9,1811.5,11.80182531]
[1746454847092,5.51920184,1811.9,1811.6,0.05519402]
[1746454847293,5.51893233,1812.0,1811.6,5.57514543]
[1746454847611,5.5191248,1811.9,1811.7,0.55751454]
[1746454847939,5.5191248,1811.9,1811.5,11.80184563]
[1746454848219,5.5191248,1811.9,1811.5,3.28174023]
[1746454848220,0.06898876,1811.9,1811.5,3.28174023]
[1746454848424,5.51952001,1811.8,1811.5,0.42534932]
[1746454848722,5.51986695,1811.7,1811.4,8.7660652]
[1746454849091,0.5681,1812.2,1811.4,5.08119897]
[1746454849285,5.51954478,1811.8,1811.4,10.60178985]
[1746454849496,5.51926978,1811.9,1811.5,6.58042264]
[1746454849825,5.51937581,1811.8,1811.5,6.58042264]
[1746454850008,5.51978098,1811.7,1811.5,1.1153734]
[1746454850214,5.51937581,1811.8,1811.6,0.12631344]
[1746454850409,5.51937581,1811.8,1811.4,10.54648074]
[1746454850614,11.03903184,1811.8,1811.5,0.12646407]
[1746454850815,5.51972114,1811.7,1811.5,0.12646407]
[1746454851203,11.03967393,1811.7,1811.5,0.12646407]
[1746454851527,5.51998233,1811.6,1811.5,0.12646407]
[1746454851733,5.51972114,1811.7,1811.5,0.12646407]
[1746454851948,6.08758889,1811.8,1811.5,0.68316941]
[1746454852105,5.51922633,1811.9,1811.5,6.20327272]
[1746454852302,5.51922633,1811.9,1811.6,0.8224]
[1746454852604,5.51861856,1812.1,1811.7,5.64561885]
[1746454852802,5.51862068,1812.1,1811.8,0.05518811]
[1746454853107,11.03732137,1812.1,1811.9,0.12586163]
[1746454853426,5.51862068,1812.1,1811.8,0.62526881]
[1746454853743,5.51886487,1812.0,1811.6,6.34226063]
[1746454854247,5.51886487,1812.0,1811.6,0.8224]
[1746454854248,5.51922858,1811.9,1811.6,0.8224]
[1746454854746,5.51941388,1811.8,1811.6,0.8224]
[1746454856803,5.51967765,1811.7,1811.6,0.8224]
[1746454857023,5.51941388,1811.8,1811.5,4.40390025]
[1746454857234,5.51941388,1811.8,1811.6,0.44039003]
[1746454857543,5.51838805,1812.2,1811.8,0.7831]
[1746454857702,5.51787347,1812.3,1811.9,0.05518524]
[1746454858343,5.51787347,1812.3,1811.9,5.57420188]
[1746454858548,11.03597334,1812.3,1811.9,5.57420188]
[1746454858750,5.51787347,1812.3,1812.0,0.55742019]
[1746454859061,5.51754579,1812.4,1811.8,8.8081]
[1746454859203,5.51833436,1812.2,1811.8,14.32733374]
[1746454859404,5.51833436,1812.2,1811.9,5.57422301]
[1746454859709,5.51833436,1812.2,1811.9,0.05518252]
[1746454860248,5.51906838,1811.9,1811.8,5.025]
[1746454861617,5.51954157,1811.8,1811.6,1.26499003]
[1746454861942,5.51954157,1811.8,1811.6,6.27699003]
[1746454862649,5.51967765,1811.7,1811.6,5.012]
[1746454862874,5.51998233,1811.6,1811.5,3.68486623]
[1746454863026,6.70708615,1811.6,1811.5,3.68486623]
[1746454863349,6.13898615,1811.6,1811.5,3.68486623]
[1746454863937,5.52008981,1811.6,1811.3,5.7935]
[1746454864144,5.51998849,1811.6,1811.4,0.57935]
[1746454864747,11.0402042,1811.6,1811.4,0.57935]
[1746454864909,5.52028705,1811.5,1811.4,0.57935]
[1746454865356,5.52028705,1811.5,1811.4,0.69504091]
[1746454866119,5.51968722,1811.7,1811.4,0.69504091]
[1746454866461,5.51999681,1811.6,1811.4,0.69504091]
[1746454866663,5.5200603,1811.6,1811.4,0.69504091]
[1746454866870,5.51975409,1811.7,1811.4,0.69504091]
[1746454867165,5.5199968,1811.6,1811.4,0.69504091]
[1746454867312,5.51975409,1811.7,1811.4,0.69504091]
[1746454867648,0.5681,1811.9,1811.4,6.21557129]
[1746454867852,5.51958727,1811.8,1811.5,0.62155713]
[1746454868021,5.5198007,1811.7,1811.6,0.11538963]
[1746454868368,5.58879787,1811.7,1811.6,0.11538963]
[1746454868825,5.52058542,1811.5,1811.3,5.013]
[1746454869025,5.52058542,1811.5,1811.3,8.013]
[1746454869215,5.520081,1811.6,1811.4,1.5929]
[1746454869419,5.52028705,1811.5,1811.4,0.8013]
[1746454869920,5.520081,1811.6,1811.4,0.8013]
[1746454870416,5.52028705,1811.5,1811.4,0.8013]
[1746454871449,5.52010515,1811.6,1811.4,0.8013]
[1746454872066,5.51967765,1811.7,1811.4,0.8013]
[1746454872367,5.51985492,1811.7,1811.4,0.8013]
[1746454872723,5.52011271,1811.6,1811.4,0.8013]
[1746454873032,5.51951516,1811.8,1811.6,0.7778]
[1746454873336,5.51922213,1811.9,1811.6,0.7778]
[1746454873515,5.51922213,1811.9,1811.6,1.40759858]
[1746454873835,5.51937621,1811.8,1811.6,1.40759858]
[1746454874155,5.51937621,1811.8,1811.6,0.7778]
[1746454874522,5.52008004,1811.6,1811.4,1.623]
[1746454874723,5.52028705,1811.5,1811.4,0.8013]
[1746454874952,5.52089659,1811.3,1811.2,5.013]
[1746454875662,6.08960626,1811.1,1811.0,3.68486623]
[1746454875860,7.31972676,1811.1,1811.0,3.68486623]
[1746454876161,13.81390663,1811.1,1811.0,3.68486623]
[1746454876349,16.74488004,1811.1,1811.0,3.68486623]
[1746454877335,9.63960626,1811.1,1811.0,3.68486623]
[1746454877539,6.70863749,1811.1,1811.0,3.68486623]
[1746454877952,5.52242102,1810.8,1810.7,3.68486623]
[1746454878331,5.52229829,1810.9,1810.7,3.68486623]
[1746454878535,5.52200627,1811.0,1810.7,3.68486623]
[1746454878834,11.04410149,1811.0,1810.8,0.36848662]
[1746454879037,5.52211607,1810.9,1810.8,0.36848662]
[1746454879351,5.52229423,1810.9,1810.7,3.68486623]
[1746454879731,11.11314762,1811.0,1810.7,3.68486623]
[1746454880056,5.52229652,1810.9,1810.7,3.68486623]
[1746454880439,5.59101426,1811.0,1810.7,3.68486623]
[1746454881267,5.59101426,1811.0,1810.6,0.8316]
[1746454881451,5.52234987,1810.9,1810.6,0.8316]
[1746454881781,5.52250525,1810.8,1810.6,0.8316]
[1746454882142,5.52224341,1810.9,1810.6,0.8316]
[1746454882340,5.52160218,1811.1,1810.7,0.05522502]
[1746454882560,5.52160218,1811.1,1810.7,5.577726]
[1746454882763,5.52160218,1811.1,1810.8,6.0801796]
[1746454882974,5.52134003,1811.2,1810.8,6.0801796]
[1746454883148,5.52153242,1811.1,1810.9,0.7956]
[1746454883546,6.0888658,1811.4,1810.9,6.37278837]
[1746454883745,5.58931204,1811.5,1811.0,0.63727884]
[1746454883948,1.1181,1811.6,1810.9,0.85081803]
[1746454883949,5.52160913,1811.1,1810.9,0.85081803]
[1746454884173,5.52136762,1811.2,1810.9,0.85081803]
[1746454885264,0.55,1811.5,1810.9,0.85081803]
[1746454885468,5.52177828,1811.1,1810.9,0.7956]
[1746454885638,5.5215811,1811.1,1810.9,0.85081441]
[1746454885845,5.52252957,1810.8,1810.3,0.7701]
[1746454886161,5.52252957,1810.8,1810.2,5.014]
[1746454886162,5.5239463,1810.3,1810.2,5.014]
[1746454886354,0.5681,1810.7,1810.1,4.45496623]
[1746454886569,0.5681,1810.7,1810.1,3.68486623]
[1746454886570,5.52425146,1810.2,1810.1,3.68486623]
[1746454886790,5.59331193,1810.2,1810.1,3.68486623]
[1746454886995,5.59331193,1810.2,1809.7,0.7799]
[1746454886996,5.52455665,1810.1,1810.0,4.64261066]
[1746454887282,6.14362417,1810.1,1810.0,4.64261066]
[1746454887458,6.71172417,1810.1,1810.0,4.64261066]
[1746454887659,6.64265665,1810.1,1810.0,4.64261066]
[1746454887972,11.56424743,1810.1,1810.0,4.64261066]
[1746454888576,9.64265665,1810.1,1810.0,4.64261066]
[1746454888778,9.71172501,1810.1,1810.0,4.64261066]
[1746454889762,9.71172501,1810.1,1810.0,4.76646045]
[1746454890287,6.16172501,1810.1,1810.0,4.76646045]
[1746454890494,6.71172501,1810.1,1810.0,4.76646045]
[1746454890682,8.52974064,1810.1,1810.0,4.76646045]
[1746454890884,8.52974064,1810.1,1810.0,0.12384979]
[1746454891095,5.52532185,1809.9,1809.7,0.7994]
[1746454891301,0.06906836,1810.1,1809.8,0.12432319]
[1746454891599,5.5935957,1810.2,1809.8,5.64973522]
[1746454891892,5.52487357,1810.0,1809.8,0.12432319]
[1746454892589,11.04944222,1810.1,1809.8,0.12432319]
[1746454892797,5.52459341,1810.1,1809.8,0.7692704]
[1746454893097,5.52516713,1809.9,1809.8,0.12432319]
[1746454893300,5.59424186,1809.9,1809.8,0.12432319]
[1746454893525,6.71234186,1809.9,1809.4,0.7789]
[1746454893806,5.52619096,1809.6,1809.4,0.7789]
[1746454894163,5.5263885,1809.5,1809.3,5.006]
[1746454894367,5.5263885,1809.5,1809.3,5.58867]
[1746454894561,5.59565063,1809.5,1809.3,5.58867]
[1746454894893,5.52669393,1809.4,1809.3,5.58867]
[1746454895105,5.52656679,1809.5,1809.3,5.71340489]
[1746454895106,5.52655541,1809.5,1809.3,5.71340489]
[1746454895400,11.05259418,1809.6,1809.3,5.71340489]
[1746454895598,5.52626437,1809.6,1809.3,5.71340489]
[1746454895802,5.59534884,1809.6,1809.4,0.57134049]
[1746454896096,5.59534884,1809.6,1809.5,0.1244329]
[1746454896555,5.52606556,1809.7,1809.5,0.1244329]
[1746454896758,5.52601218,1809.7,1809.5,0.1244329]
[1746454897071,5.52577775,1809.7,1809.5,0.1244329]
[1746454897274,5.52608311,1809.6,1809.5,0.1244329]
[1746454897588,5.52577775,1809.7,1809.5,0.1244329]
[1746454897777,11.12093388,1809.7,1809.5,0.1244329]
[1746454897971,5.52577775,1809.7,1809.5,0.1244329]
[1746454898318,0.06907994,1809.7,1809.5,0.1244329]
[1746454898600,11.05072816,1809.9,1809.6,0.7952]
[1746454898897,5.52503592,1810.0,1809.7,0.12413098]
[1746454899082,5.52455665,1810.1,1809.7,0.05525631]
[1746454899282,5.52455665,1810.1,1809.8,0.12398005]
[1746454899488,5.52502305,1810.0,1809.8,0.12398005]
[1746454899676,5.52466541,1810.1,1809.8,0.12398005]
[1746454899874,0.06906314,1810.1,1809.7,5.52575089]
[1746454900092,5.59375131,1810.1,1809.8,0.67655514]
[1746454900286,5.52442861,1810.2,1809.8,0.67655514]
[1746454900461,5.59286971,1810.4,1809.8,0.67655514]
[1746454900664,5.59253991,1810.5,1810.0,5.52473907]
[1746454900870,5.52322636,1810.6,1810.2,0.8258]
[1746454901168,5.52335454,1810.5,1810.3,0.12322562]
[1746454901397,5.52289832,1810.7,1810.3,0.12322562]
[1746454901710,0.06904519,1810.6,1810.4,5.52349386]
[1746454901896,10.95117987,1811.1,1810.5,0.12126571]
[1746454901897,0.06904201,1811.0,1810.5,0.12126571]
[1746454902073,11.9615214,1811.6,1810.5,0.12126571]
[1746454902074,0.5681,1811.3,1810.6,11.33146779]
[1746454902276,5.59034303,1811.2,1810.7,6.77659298]
[1746454902464,5.521571,1811.1,1810.7,1.2541109]
[1746454902665,5.52235938,1810.9,1810.7,0.12096412]
[1746454902870,0.0690192,1811.0,1810.7,0.12096412]
[1746454903116,5.52155343,1811.1,1810.7,5.64353032]
[1746454903269,5.59058133,1811.1,1810.7,5.64353032]
[1746454903472,5.59084393,1811.0,1810.7,0.12096412]
[1746454903973,5.59084393,1811.0,1810.7,0.76553215]
[1746454904477,5.52226686,1810.9,1810.7,0.12096412]
[1746454904972,5.52242102,1810.8,1810.7,0.12096412]
[1746454905173,5.59145259,1810.8,1810.7,0.12096412]
[1746454905722,5.52333609,1810.5,1810.4,5.006]
[1746454905882,5.5239463,1810.3,1810.2,0.64736521]
[1746454906088,5.5239463,1810.3,1810.1,5.8015]
[1746454906281,5.59330505,1810.2,1810.1,5.006]
[1746454906609,5.52422078,1810.3,1810.1,5.006]
[1746454906806,0.5681,1810.7,1810.1,5.006]
[1746454907015,5.52376064,1810.4,1810.1,5.5066]
[1746454907208,5.5234948,1810.5,1810.1,5.5066]
[1746454907630,5.59222482,1810.6,1810.1,11.08635758]
[1746454907910,5.52346054,1810.5,1810.1,11.0311162]
[1746454908112,5.52346054,1810.5,1810.1,5.5066]
[1746454908288,5.52347193,1810.5,1810.2,0.55066]
[1746454908482,5.59251946,1810.5,1810.2,0.55066]
[1746454909476,5.5231975,1810.6,1810.2,0.55066]
[1746454909689,5.59224499,1810.6,1810.2,0.55066]
[1746454909905,5.52337642,1810.5,1810.2,0.55066]
[1746454910109,5.52337642,1810.5,1810.3,0.12156737]
[1746454910310,5.59242397,1810.5,1810.3,0.12156737]
[1746454912514,0.06904755,1810.5,1810.3,0.12156737]
[1746454912692,5.59219761,1810.6,1810.3,0.93046737]
[1746454912891,5.59219761,1810.6,1810.3,1.63098995]
[1746454913415,11.11553139,1810.6,1810.3,1.63098995]
[1746454913711,5.52304451,1810.6,1810.3,0.93046737]
[1746454914815,5.52285696,1810.7,1810.3,0.93046737]
[1746454915193,5.52283001,1810.7,1810.3,6.45438138]
[1746454915391,0.5681,1811.1,1810.4,5.57881443]
[1746454915596,5.52223645,1810.9,1810.5,11.08721266]
[1746454915917,5.52190962,1811.0,1810.6,6.347654]
[1746454916095,5.52190962,1811.0,1810.7,0.11490465]
[1746454916290,5.52168494,1811.1,1810.7,5.63762193]
[1746454916507,5.52168494,1811.1,1810.7,0.11490465]
[1746454916815,5.59057974,1811.1,1810.7,6.27819173]
[1746454917021,5.59074983,1811.1,1810.7,0.75563771]
[1746454917707,5.52163592,1811.1,1810.7,0.75563771]
[1746454917908,5.52138057,1811.2,1810.8,5.52232985]
[1746454918103,5.52085576,1811.4,1811.0,0.8229]
[1746454918308,5.59000815,1811.3,1811.1,0.11218768]
[1746454918688,0.06902008,1811.3,1811.1,0.11218768]
[1746454919209,0.06902008,1811.3,1811.1,0.75786845]
[1746454919584,5.59006011,1811.3,1811.1,0.75786845]
[1746454919784,0.06902008,1811.3,1811.1,0.11218768]
[1746454919991,5.52077769,1811.4,1811.1,0.11218768]
[1746454920306,5.52120141,1811.2,1811.1,0.11218768]
[1746454920519,5.52211607,1810.9,1810.8,8.7588]
[1746454920696,5.52194052,1811.0,1810.8,9.80990821]
[1746454920898,5.52194052,1811.0,1810.8,6.80990821]
[1746454921284,5.52211607,1810.9,1810.8,5.1101549]
[1746454921611,5.52194052,1811.0,1810.8,5.1101549]
[1746454922187,0.5681,1811.3,1810.8,5.1101549]
[1746454922418,5.52165767,1811.1,1810.9,0.77]
[1746454922721,5.52165767,1811.1,1811.0,0.11153874]
[1746454922932,5.59068052,1811.1,1811.0,0.11153874]
[1746454923092,5.52207146,1811.0,1810.8,4.999]
[1746454923433,6.15930341,1810.9,1810.5,6.33338144]
[1746454923590,5.52364118,1810.4,1810.3,0.7775]
[1746454923791,5.52364118,1810.4,1810.1,3.69383611]
[1746454924022,0.06904783,1810.4,1810.2,3.0]
[1746454924198,5.5238106,1810.4,1810.2,3.0]
[1746454924521,5.523458,1810.5,1810.1,9.27337849]
[1746454924739,5.52324409,1810.6,1810.2,0.92733785]
[1746454924889,5.52324409,1810.6,1810.2,3.92733785]
[1746454925092,5.52343215,1810.5,1810.2,3.92733785]
[1746454925833,5.52378548,1810.4,1810.2,3.92733785]
[1746454926040,0.06904777,1810.7,1810.2,3.0]
[1746454926337,5.52380464,1810.4,1810.2,3.0]
[1746454927500,5.52425146,1810.2,1810.0,5.7755]
[1746454927727,5.52455665,1810.1,1810.0,0.7775]
[1746454927949,5.52538018,1809.9,1809.8,0.8331]
[1746454928248,5.52534473,1809.9,1809.7,4.998]
[1746454928750,5.52450776,1810.2,1809.8,5.52535806]
[1746454928945,5.52450776,1810.2,1809.7,13.52358187]
[1746454929254,5.52465371,1810.1,1809.7,13.52358187]
[1746454929555,5.52465371,1810.1,1809.8,1.35235819]
[1746454929719,5.52465371,1810.1,1809.8,6.87778607]
[1746454929908,5.52465371,1810.1,1809.8,1.35235819]
[1746454930119,11.0500917,1810.0,1809.8,1.35235819]
[1746454930341,0.06906089,1809.9,1809.6,4.46143611]
[1746454930566,5.52577775,1809.7,1809.6,3.69383611]
[1746454931039,5.52577775,1809.7,1809.4,5.7542]
[1746454931222,5.52516713,1809.9,1809.4,11.33611744]
[1746454931429,5.52628737,1809.6,1809.4,5.7542]
[1746454932009,5.5263885,1809.5,1809.4,8.7542]
[1746454932212,5.5263885,1809.5,1809.3,3.69383611]
[1746454932213,5.52669393,1809.4,1809.3,3.69383611]
[1746454932442,5.5957825,1809.4,1809.3,3.69383611]
[1746454932759,5.52669393,1809.4,1809.1,5.7934]
[1746454932910,5.59578569,1809.4,1809.2,0.57934]
[1746454933110,5.52699939,1809.3,1809.2,0.57934]
[1746454933310,5.52699939,1809.3,1809.1,5.7934]
[1746454934055,5.52669968,1809.4,1809.1,5.7934]
[1746454934372,5.52687107,1809.4,1809.1,5.7934]
[1746454934556,5.52703051,1809.3,1809.1,5.7934]
[1746454934711,5.52773083,1809.1,1808.9,3.69383611]
[1746454934912,5.52773083,1809.1,1808.9,4.64300972]
[1746454935346,5.59653862,1809.2,1808.9,4.64300972]
[1746454935856,5.52683417,1809.4,1808.9,4.69828481]
[1746454936022,5.52754247,1809.2,1808.9,4.64300972]
[1746454936351,5.52754247,1809.2,1809.0,0.46430097]
[1746454936652,5.52761041,1809.1,1808.9,0.94917361]
[1746454936949,5.5274905,1809.2,1808.9,0.94917361]
[1746454937353,5.59658438,1809.2,1808.9,0.94917361]
[1746454937557,5.52749135,1809.2,1808.9,0.94917361]
[1746454937764,0.55,1809.5,1808.9,0.94917361]
[1746454937930,5.52747047,1809.2,1808.9,1.00444989]
[1746454938150,5.52747047,1809.2,1808.9,0.94917361]
[1746454938356,5.52714766,1809.3,1808.9,0.94917361]
[1746454938568,5.52754056,1809.2,1808.9,1.00444989]
[1746454938971,5.59663591,1809.2,1808.9,0.94917361]
[1746454939142,5.52786717,1809.1,1808.9,0.94917361]
[1746454939337,5.52750097,1809.2,1808.9,0.94917361]
[1746454939546,5.52801766,1809.0,1808.8,5.0]
[1746454939970,5.52860127,1808.8,1808.6,3.0]
[1746454940171,5.52883286,1808.7,1808.5,5.001]
[1746454940356,11.05793551,1808.7,1808.5,5.58002]
[1746454940656,5.52864924,1808.8,1808.5,5.58002]
[1746454940982,6.16622891,1808.7,1808.5,5.001]
[1746454942152,0.06911301,1808.7,1808.5,5.001]
[1746454942668,5.59795625,1808.7,1808.5,5.001]
[1746454942869,5.59795625,1808.7,1808.4,5.52974418]
[1746454942870,0.06911301,1808.7,1808.4,5.52974418]
[1746454943187,6.09742904,1808.6,1808.3,3.69383611]
[1746454943387,0.06912578,1808.5,1808.3,3.69383611]
[1746454943694,0.5681,1808.6,1808.4,5.52970111]
[1746454944078,0.06912562,1808.7,1808.4,5.52970111]
[1746454944588,0.06912562,1808.7,1808.4,5.52963819]
[1746454945182,5.59802264,1808.7,1808.3,5.52985698]
[1746454945389,0.06912562,1808.7,1808.4,5.52974624]
[1746454945595,0.06912562,1808.7,1808.4,6.71430656]
[1746454945799,5.59808814,1808.7,1808.4,1.18456032]
[1746454946399,0.06912562,1808.7,1808.4,1.18456032]
[1746454946574,0.06912562,1808.7,1808.2,5.002]
[1746454946776,5.52936725,1808.6,1808.2,10.53220006]
[1746454947109,5.52901459,1808.7,1808.3,5.53004588]
[1746454947283,5.59813639,1808.7,1808.3,5.53004588]